bitfinex-derivatives/quotes_SOLF0:USTF0_20250505
["timestamp","ask_amount","ask_price","bid_price","bid_amount"]
[1746455857812,6.9135,144.65,144.62,6.9147]
[1746455858210,6.9135,144.65,144.57,32.2287]
[1746455858715,6.9132,144.66,144.57,32.2287]
[1746455859009,6.9132,144.66,144.63,6.9144]
[1746455859409,32.9328,144.67,144.57,32.2287]
[1746455860309,32.9328,144.67,144.64,6.914]
[1746455860510,6.9128,144.67,144.61,26.02]
[1746455860708,6.9123,144.68,144.61,26.02]
[1746455860912,6.9123,144.68,144.65,6.9133]
[1746455861416,6.9126,144.67,144.65,6.9133]
[1746455861619,6.9126,144.67,144.64,6.9137]
[1746455861913,6.9119,144.69,144.61,26.02]
[1746455862117,28.0827,144.7,144.61,26.02]
[1746455862416,6.9118,144.69,144.61,26.02]
[1746455862610,2.0627,144.7,144.61,26.02]
[1746455863116,21.0,144.71,144.61,26.02]
[1746455863409,6.9124,144.68,144.61,26.02]
[1746455863615,21.0,144.71,144.61,26.02]
[1746455864015,6.9127,144.67,144.64,6.914]
[1746455864618,6.9124,144.68,144.65,6.9135]
[1746455865115,6.9127,144.67,144.65,6.9135]
[1746455865417,21.0,144.71,144.61,26.02]
[1746455865617,6.9126,144.67,144.61,26.02]
[1746455865817,6.9126,144.67,144.64,6.9137]
[1746455866016,21.0,144.71,144.61,26.02]
[1746455866217,6.9127,144.67,144.61,26.02]
[1746455866418,6.9127,144.67,144.64,6.9136]
[1746455866617,6.9127,144.67,144.61,26.02]
[1746455867317,21.0,144.71,144.61,26.02]
[1746455867515,21.0,144.71,144.65,6.9133]
[1746455868319,6.9125,144.68,144.65,6.9133]
[1746455868618,21.0,144.71,144.64,6.9138]
[1746455869321,21.0,144.71,144.61,26.02]
[1746455869520,6.9128,144.67,144.61,26.02]
[1746455869719,6.9128,144.67,144.64,6.9137]
[1746455869922,6.9133,144.66,144.64,6.9137]
[1746455870116,21.0,144.71,144.61,26.02]
[1746455870317,25.76,144.7,144.62,6.915]
[1746455870523,25.76,144.7,144.61,26.02]
[1746455870924,25.76,144.7,144.65,6.9135]
[1746455871120,25.76,144.7,144.61,26.02]
[1746455871422,25.76,144.7,144.64,6.9136]
[1746455871615,25.76,144.7,144.61,26.02]
[1746455871817,26.50772984,144.73,144.62,18.75204757]
[1746455871818,6.9104,144.72,144.62,18.75204757]
[1746455872021,24.43412984,144.73,144.62,18.75204757]
[1746455872224,24.43412984,144.71,144.63,6.1056]
[1746455873223,31.34502984,144.71,144.69,6.9114]
[1746455873622,24.43412984,144.71,144.69,6.9114]
[1746455873926,24.43412984,144.71,144.65,25.76]
[1746455874417,24.43412984,144.71,144.65,37.42534976]
[1746455874622,25.76,144.74,144.65,37.42534976]
[1746455874824,6.9098,144.73,144.71,6.9107]
[1746455875023,6.9098,144.73,144.65,37.42534976]
[1746455875223,25.76,144.74,144.65,37.42534976]
[1746455875425,32.6696,144.74,144.71,6.9106]
[1746455877131,6.9098,144.73,144.7,6.911]
[1746455877621,32.6695,144.74,144.71,6.9104]
[1746455878020,25.76,144.74,144.65,25.76]
[1746455878423,6.91,144.73,144.7,6.9109]
[1746455878928,6.9102,144.72,144.69,6.9114]
[1746455879227,25.76,144.74,144.65,25.76]
[1746455879424,6.9104,144.72,144.69,6.9115]
[1746455880527,6.9104,144.72,144.7,6.9111]
[1746455880721,2.0268,144.76,144.65,25.76]
[1746455881122,2.0268,144.76,144.7,6.9109]
[1746455881422,2.0268,144.76,144.69,25.74]
[1746455881727,2.0268,144.76,144.7,6.9108]
[1746455881928,6.9099,144.73,144.69,25.74]
[1746455882129,27.7268,144.77,144.69,25.74]
[1746455882130,25.74,144.77,144.69,25.74]
[1746455882826,6.9091,144.75,144.69,25.74]
[1746455883028,25.74,144.77,144.69,25.74]
[1746455883217,25.74,144.77,144.71,6.9104]
[1746455884027,6.9099,144.73,144.71,6.9104]
[1746455884329,25.74,144.77,144.72,6.9102]
[1746455884531,25.74,144.77,144.69,25.74]
[1746455884724,6.9096,144.74,144.69,25.74]
[1746455884924,6.9096,144.74,144.71,6.9103]
[1746455885229,6.9096,144.74,144.69,25.74]
[1746455885432,6.9089,144.75,144.69,25.74]
[1746455885623,25.74,144.77,144.69,25.74]
[1746455885824,6.9087,144.76,144.7,2.0053]
[1746455886124,25.74,144.77,144.72,6.9098]
[1746455886427,6.9093,144.74,144.72,6.9098]
[1746455886629,25.74,144.77,144.7,6.9109]
[1746455887020,6.91,144.73,144.7,6.9109]
[1746455887431,6.91,144.73,144.71,6.9106]
[1746455887628,6.9091,144.75,144.69,25.74]
[1746455888029,25.74,144.77,144.72,6.9099]
[1746455888434,25.74,144.77,144.69,25.74]
[1746455888732,25.74,144.77,144.71,6.9104]
[1746455888925,25.74,144.77,144.69,25.74]
[1746455889234,6.9095,144.74,144.72,6.9102]
[1746455890939,6.909,144.75,144.73,6.9096]
[1746455891131,25.74,144.77,144.69,27.824]
[1746455891331,21.0,144.79,144.69,27.824]
[1746455891526,6.9076,144.78,144.75,6.9085]
[1746455891727,27.8224,144.8,144.75,6.9085]
[1746455891934,6.9077,144.78,144.76,6.9082]
[1746455892131,25.74,144.8,144.73,25.74]
[1746455892534,6.9072,144.79,144.76,6.908]
[1746455892740,25.74,144.8,144.73,25.74]
[1746455892938,6.9081,144.77,144.73,25.74]
[1746455893139,25.74,144.8,144.75,6.9085]
[1746455893545,6.9077,144.78,144.75,6.9085]
[1746455894447,6.9077,144.78,144.76,6.9081]
[1746455895242,6.9077,144.78,144.75,6.9085]
[1746455895442,6.9078,144.77,144.75,6.9085]
[1746455895850,25.74,144.8,144.75,6.9085]
[1746455896948,25.74,144.8,144.73,25.74]
[1746455897949,6.9092,144.74,144.73,25.74]
[1746455898653,6.909,144.75,144.73,25.74]
[1746455899751,6.9092,144.74,144.73,25.74]
[1746455900146,6.909,144.75,144.72,6.9099]
[1746455900353,25.74,144.8,144.71,11.65083929]
[1746455901052,6.9086,144.76,144.71,11.65083929]
[1746455902253,6.9086,144.76,144.73,6.9093]
[1746455902453,6.9088,144.75,144.73,6.9093]
[1746455903450,6.9081,144.77,144.74,6.9089]
[1746455903654,25.74,144.8,144.74,6.9089]
[1746455904056,6.9079,144.77,144.75,6.9086]
[1746455904258,25.74,144.8,144.71,11.65083929]
[1746455904646,25.74,144.8,144.75,6.9084]
[1746455905259,6.9081,144.77,144.75,6.9084]
[1746455906157,25.74,144.8,144.74,32.549]
[1746455906458,25.74,144.8,144.74,25.64]
[1746455907256,6.9082,144.77,144.74,32.5489]
[1746455907662,6.9082,144.77,144.74,25.64]
[1746455907959,6.9082,144.77,144.75,6.9085]
[1746455908453,6.9075,144.78,144.74,25.64]
[1746455908760,6.9075,144.78,144.76,6.9079]
[1746455909561,25.74,144.8,144.77,6.9076]
[1746455909761,46.64,144.83,144.74,25.64]
[1746455910059,46.64,144.83,144.75,4.1749]
[1746455910657,6.9067,144.8,144.77,6.9074]
[1746455910859,46.64,144.83,144.77,6.9074]
[1746455911860,6.907,144.79,144.77,6.9074]
[1746455914262,6.9073,144.78,144.76,6.9081]
[1746455914665,46.64,144.83,144.75,4.1749]
[1746455914865,46.64,144.83,144.74,25.64]
[1746455915368,6.9081,144.77,144.75,6.9087]
[1746455915559,46.64,144.83,144.74,25.64]
[1746455915758,11.65083929,144.82,144.74,25.64]
[1746455916259,12.42063929,144.82,144.71,25.64]
[1746455916567,12.42063929,144.82,144.73,6.9095]
[1746455917268,6.9088,144.75,144.73,6.9095]
[1746455918771,6.9085,144.76,144.73,6.9095]
[1746455918966,6.9085,144.76,144.74,6.9091]
[1746455919163,6.9085,144.76,144.71,25.64]
[1746455919769,6.9089,144.75,144.73,6.9094]
[1746455920670,6.9085,144.76,144.73,6.9094]
[1746455920972,25.64,144.79,144.73,6.9094]
[1746455921365,6.9086,144.76,144.73,6.9094]
[1746455921672,25.64,144.79,144.71,25.64]
[1746455922072,6.9086,144.76,144.71,25.64]
[1746455922272,21.0,144.83,144.73,11.65083929]
[1746455922574,6.9062,144.81,144.73,11.65083929]
[1746455923175,6.9062,144.81,144.78,6.9072]
[1746455923672,6.9055,144.82,144.76,25.64]
[1746455924069,6.9055,144.82,144.78,6.9069]
[1746455924269,27.9051,144.83,144.76,37.29083929]
[1746455924471,21.0,144.83,144.76,37.29083929]
[1746455924669,6.9057,144.82,144.79,6.9066]
[1746455926171,25.64,144.84,144.76,37.29083929]
[1746455926874,6.9057,144.82,144.79,6.9068]
[1746455931174,6.9057,144.82,144.76,37.29083929]
[1746455931479,6.9048,144.84,144.81,6.9059]
[1746455932278,6.9048,144.84,144.82,6.9054]
[1746455932775,6.9048,144.84,144.76,37.29083929]
[1746455932975,6.905,144.83,144.81,6.9057]
[1746455933480,6.905,144.83,144.8,6.9061]
[1746455934385,6.905,144.83,144.81,6.9058]
[1746455936874,6.9055,144.82,144.76,37.29083929]
[1746455937277,6.9063,144.81,144.76,37.29083929]
[1746455937782,6.9063,144.81,144.79,6.9068]
[1746455938083,6.9063,144.81,144.76,37.29083929]
[1746455938381,6.9063,144.81,144.78,6.9069]
[1746455938682,6.9056,144.82,144.76,37.29083929]
[1746455938877,0.7706,144.86,144.79,6.9065]
[1746455939884,6.9058,144.82,144.8,6.9064]
[1746455940083,0.7706,144.86,144.8,6.9064]
[1746455940485,6.9053,144.83,144.8,6.9064]
[1746455940688,46.64,144.87,144.81,6.9058]
[1746455941184,6.9049,144.84,144.81,6.9058]
[1746455942290,6.9051,144.83,144.76,37.29083929]
[1746455942489,6.8051,144.83,144.8,6.9062]
[1746455942795,6.8051,144.83,144.76,37.29083929]
[1746455942987,6.9047,144.84,144.76,37.29083929]
[1746455943294,46.64,144.87,144.76,37.29083929]
[1746455943794,6.9042,144.85,144.76,37.29083929]
[1746455944191,6.9042,144.85,144.82,6.905]
[1746455944501,6.9042,144.85,144.76,37.29083929]
[1746455945691,6.9042,144.85,144.83,6.9048]
[1746455946890,6.9037,144.86,144.83,6.9048]
[1746455947096,46.64,144.87,144.8,25.64]
[1746455947493,53.5433,144.87,144.8,29.6782]
[1746455948296,46.64,144.87,144.8,29.6782]
[1746455948495,21.0,144.87,144.8,29.6782]
[1746455948697,21.0,144.87,144.85,6.9036]
[1746455948893,6.9029,144.88,144.85,6.9036]
[1746455949293,25.62,144.9,144.85,6.9036]
[1746455949594,25.62,144.9,144.84,6.9042]
[1746455950096,6.9033,144.87,144.84,6.9042]
[1746455950295,6.9033,144.87,144.85,6.9039]
[1746455950496,6.9028,144.88,144.8,31.6289]
[1746455950697,25.62,144.9,144.8,31.6289]
[1746455950997,25.62,144.9,144.84,6.9041]
[1746455951194,6.9033,144.87,144.8,31.6289]
[1746455951398,25.1292,144.92,144.8,31.6289]
[1746455951399,25.1292,144.92,144.87,6.903]
[1746455951591,25.1292,144.92,144.82,11.65083929]
[1746455951592,25.1292,144.92,144.84,25.62]
[1746455951788,25.1292,144.92,144.88,6.9023]
[1746455951993,24.43412984,144.93,144.89,37.24058634]
[1746455952198,65.15767958,144.94,144.92,11.62058634]
[1746455952397,65.15767958,144.94,144.93,32.5202]
[1746455952802,29.21647958,144.94,144.93,32.5202]
[1746455953504,24.43950143,144.94,144.93,32.5202]
[1746455954698,24.43950143,144.94,144.93,25.62]
[1746455955099,24.43950143,144.94,144.9,25.62]
[1746455955299,24.43950143,144.94,144.91,6.9008]
[1746455955800,24.43950143,144.94,144.9,25.62]
[1746455955801,24.43950143,144.94,144.92,6.9007]
[1746455957401,24.43950143,144.94,144.91,6.9009]
[1746455957602,6.8993,144.95,144.91,6.9009]
[1746455957997,6.8993,144.95,144.92,6.9006]
[1746455958502,25.62,144.98,144.92,6.9006]
[1746455959305,25.62,144.98,144.91,6.9009]
[1746455959501,6.8994,144.95,144.9,25.62]
[1746455959805,6.8994,144.95,144.92,6.9003]
[1746455960299,6.8998,144.94,144.91,6.901]
[1746455960503,25.62,144.98,144.9,25.62]
[1746455961103,25.62,144.98,144.92,6.9006]
[1746455961504,6.8995,144.95,144.92,6.9006]
[1746455961705,25.62,144.98,144.93,6.8999]
[1746455961909,25.62,144.98,144.9,25.62]
[1746455962206,6.8992,144.96,144.92,6.9004]
[1746455962703,25.62,144.98,144.92,6.9004]
[1746455962905,6.8993,144.95,144.92,6.9004]
[1746455963202,25.62,144.98,144.9,25.62]
[1746455963403,6.8991,144.96,144.9,25.62]
[1746455963606,6.8991,144.96,144.93,6.8999]
[1746455964106,6.8985,144.97,144.94,6.8995]
[1746455965910,25.62,144.98,144.94,6.8995]
[1746455966511,6.8986,144.97,144.94,6.8995]
[1746455967212,6.8989,144.96,144.93,6.9]
[1746455968113,6.8985,144.97,144.94,6.8996]
[1746455968313,25.62,144.98,144.9,25.62]
[1746455969217,6.8983,144.97,144.94,6.8993]
[1746455969714,6.8983,144.97,144.9,25.62]
[1746455970015,25.62,144.98,144.92,11.62058634]
[1746455970511,25.62,144.98,144.9,25.62]
[1746455970712,25.62,144.98,144.91,11.62058634]
[1746455971115,32.5181,144.98,144.95,6.899]
[1746455972316,6.8984,144.97,144.95,6.899]
[1746455972512,6.8984,144.97,144.94,6.8994]
[1746455972717,25.62,144.98,144.91,11.62058634]
[1746455973019,6.8995,144.95,144.91,11.62058634]
[1746455973211,6.8995,144.95,144.92,6.9002]
[1746455973623,6.899,144.96,144.91,11.62058634]
[1746455974318,6.899,144.96,144.93,6.9001]
[1746455975021,6.8993,144.95,144.93,6.9001]
[1746455975420,6.8993,144.95,144.92,6.9004]
[1746455975923,6.9001,144.94,144.9,25.62]
[1746455976415,6.8994,144.95,144.9,25.62]
[1746455976615,6.8994,144.95,144.92,6.9004]
[1746455976823,25.62,144.98,144.92,6.9004]
[1746455977317,6.9,144.94,144.91,6.9009]
[1746455978119,6.9,144.94,144.92,6.9006]
[1746455978619,6.8995,144.95,144.92,6.9006]
[1746455979218,6.8995,144.95,144.93,6.9001]
[1746455980317,6.899,144.96,144.94,6.8997]
[1746455980522,6.899,144.96,144.9,25.62]
[1746455981022,6.899,144.96,144.93,6.8999]
[1746455981218,6.899,144.96,144.9,25.62]
[1746455981721,6.899,144.96,144.93,6.8998]
[1746455982322,6.899,144.96,144.94,6.8997]
[1746455982524,6.899,144.96,144.9,25.62]
[1746455982920,6.899,144.96,144.93,6.8998]
[1746455983123,6.8993,144.95,144.93,6.8998]
[1746455983323,25.62,144.98,144.93,6.8998]
[1746455983722,6.8991,144.96,144.93,6.8998]
[1746455984327,6.8993,144.95,144.93,6.8998]
[1746455984626,25.62,144.98,144.93,6.8998]
[1746455984926,25.62,144.98,144.94,6.8996]
[1746455985327,6.899,144.96,144.94,6.8996]
[1746455985925,6.899,144.96,144.93,6.8999]
[1746455986718,25.62,144.98,144.94,6.8997]
[1746455987722,6.8991,144.96,144.94,6.8997]
[1746455988126,25.62,144.98,144.93,6.9]
[1746455988424,6.8992,144.95,144.93,6.9]
[1746455989727,6.8997,144.94,144.92,6.9004]
[1746455989922,25.62,144.98,144.91,1.0]
[1746455990332,6.8988,144.96,144.93,6.9]
[1746455991328,6.8993,144.95,144.93,6.9]
[1746455994332,6.899,144.96,144.93,6.9]
[1746455994928,25.62,144.98,144.92,6.9004]
[1746455995734,25.62,144.98,144.91,12.62058634]
[1746455996028,25.62,144.98,144.91,1.0]
[1746455996233,32.5181,144.98,144.95,6.8989]
[1746455996636,25.62,144.98,144.91,1.0]
[1746455996825,32.5179,144.98,144.96,6.8984]
[1746455997837,6.8983,144.97,144.95,6.899]
[1746455998935,32.518,144.98,144.96,6.8987]
[1746455999836,32.518,144.98,144.95,6.899]
[1746456000332,32.518,144.98,144.96,6.8987]
[1746456002441,25.62,144.98,144.96,6.8987]
[1746456003036,25.62,144.98,144.97,6.8983]
[1746456003929,25.62,144.98,144.91,12.6193082]
[1746456004134,6.899,144.96,144.91,12.6193082]
[1746456004442,6.899,144.96,144.93,6.8998]
[1746456004741,6.8993,144.95,144.93,6.8998]
[1746456004939,25.62,144.98,144.91,1.0]
[1746456005147,25.62,144.98,144.92,6.9004]
[1746456005349,6.8997,144.94,144.92,6.9004]
[1746456005643,25.62,144.98,144.93,6.8999]
[1746456005846,6.8995,144.95,144.91,1.0]
[1746456006250,25.62,144.98,144.91,1.0]
[1746456006951,6.9005,144.93,144.91,1.0]
[1746456007952,6.9005,144.93,144.91,7.9011]
[1746456008454,6.9005,144.93,144.91,1.0]
[1746456009054,6.8999,144.94,144.91,7.9011]
[1746456009353,25.62,144.98,144.91,1.0]
[1746456009554,6.899,144.96,144.93,6.9]
[1746456009755,25.62,144.98,144.91,1.0]
[1746456010754,6.9004,144.93,144.91,1.0]
[1746456012249,6.9007,144.92,144.91,1.0]
[1746456017463,37.2193082,144.94,144.86,0.29382]
[1746456018155,37.2193082,144.94,144.86,7.19692]
[1746456018361,37.2193082,144.94,144.86,0.29382]
[1746456018561,6.9023,144.89,144.86,7.19732]
[1746456018859,6.9023,144.89,144.86,0.29382]
[1746456019160,6.9023,144.89,144.86,7.19702]
[1746456019560,37.2193082,144.94,144.86,0.29382]
[1746456019950,37.2193082,144.94,144.87,6.9027]
[1746456020158,6.9017,144.9,144.87,6.9027]
[1746456020458,37.2193082,144.94,144.87,6.9027]
[1746456020851,37.2193082,144.94,144.86,0.29382]
[1746456021261,6.9028,144.88,144.86,0.29382]
[1746456021462,25.58,144.9,144.86,0.29382]
[1746456021959,6.9023,144.89,144.86,7.19702]
[1746456022964,6.903,144.87,144.86,0.29382]
[1746456023457,6.9029,144.88,144.86,0.29382]
[1746456024261,8.8476,144.89,144.86,0.29382]
[1746456024465,25.58,144.9,144.86,0.29382]
[1746456024862,6.9024,144.89,144.86,7.19712]
[1746456026769,6.9026,144.88,144.86,7.19712]
[1746456028369,6.9026,144.88,144.86,0.29382]
[1746456029163,6.9026,144.88,144.86,7.19732]
[1746456029469,6.9026,144.88,144.86,0.29382]
[1746456029870,25.58,144.9,144.86,0.29382]
[1746456030169,25.58,144.9,144.85,6.9037]
[1746456030370,6.9028,144.88,144.85,6.9037]
[1746456030971,6.903,144.87,144.85,6.9037]
[1746456031774,6.9028,144.88,144.86,6.9035]
[1746456032272,6.9023,144.89,144.86,6.9035]
[1746456032465,25.58,144.9,144.86,6.9035]
[1746456032973,6.9028,144.88,144.85,6.9038]
[1746456033573,25.58,144.9,144.85,6.9038]
[1746456033770,25.58,144.9,144.86,6.9035]
[1746456034273,6.9026,144.88,144.86,6.9035]
[1746456034974,6.9026,144.88,144.85,6.9037]
[1746456035573,6.9023,144.89,144.86,6.9034]
[1746456036277,6.9026,144.88,144.86,6.9034]
[1746456037570,6.9012,144.91,144.88,6.9022]
[1746456037775,25.58,144.94,144.88,7.44607497]
[1746456038176,6.9005,144.93,144.9,6.9012]
[1746456039174,6.9005,144.93,144.91,6.901]
[1746456039378,32.4801,144.94,144.91,6.901]
[1746456039574,25.58,144.94,144.91,6.901]
[1746456040266,6.9004,144.93,144.91,6.901]
[1746456040678,6.9004,144.93,144.9,6.9013]
[1746456041079,32.4799,144.94,144.89,7.44607497]
[1746456041277,27.5451,144.98,144.93,7.44607497]
[1746456041675,6.8985,144.97,144.95,6.8992]
[1746456042073,25.58,144.98,144.9,13.75830527]
[1746456042371,32.4781,144.98,144.95,6.8989]
[1746456042674,25.58,144.98,144.95,6.8989]
[1746456043174,6.8984,144.97,144.95,6.8989]
[1746456043478,6.8984,144.97,144.94,6.8995]
[1746456043676,6.8984,144.97,144.9,15.75570527]
[1746456044079,6.8984,144.97,144.94,6.8993]
[1746456044883,6.8984,144.97,144.95,6.8991]
[1746456046588,25.58,144.98,144.96,6.8985]
[1746456047076,6.8983,144.97,144.9,15.75570527]
[1746456047980,6.8983,144.97,144.94,6.8994]
[1746456048183,6.8989,144.96,144.9,15.75570527]
[1746456048580,6.8996,144.95,144.92,6.9003]
[1746456048885,25.58,144.98,144.89,25.58]
[1746456049089,25.58,144.98,144.92,6.9007]
[1746456049687,25.58,144.98,144.91,6.9009]
[1746456050088,6.9,144.94,144.91,6.9009]
[1746456050277,25.58,144.98,144.91,6.9009]
[1746456050481,6.9001,144.94,144.91,6.9009]
[1746456051890,6.9001,144.94,144.91,7.9009]
[1746456052490,6.8991,144.96,144.91,1.0]
[1746456052792,2.093,144.97,144.91,1.0]
[1746456053799,6.8989,144.96,144.93,6.8999]
[1746456053991,6.8989,144.96,144.91,1.0]
[1746456054592,6.8989,144.96,144.93,6.8997]
[1746456055487,2.093,144.97,144.91,1.0]
[1746456055685,8.9915,144.97,144.95,6.8992]
[1746456055886,8.9915,144.97,144.91,1.0]
[1746456056093,8.9915,144.97,144.94,6.8995]
[1746456056392,8.9915,144.97,144.91,1.0]
[1746456057094,8.9915,144.97,144.95,6.899]
[1746456057391,25.58,144.98,144.91,1.0]
[1746456057692,25.58,144.98,144.96,6.8984]
[1746456057892,25.58,144.98,144.91,3.1295]
[1746456058392,32.4779,144.98,144.91,3.1295]
[1746456058991,25.58,144.98,144.91,1.0]
[1746456059490,6.8985,144.97,144.94,6.8995]
[1746456059692,25.58,144.98,144.91,1.0]
[1746456059993,32.4781,144.98,144.95,6.899]
[1746456060195,25.58,144.98,144.95,6.899]
[1746456060494,6.8985,144.97,144.95,6.8991]
[1746456060696,25.58,144.98,144.95,6.8991]
[1746456061294,32.4782,144.98,144.95,6.8991]
[1746456061493,25.58,144.98,144.91,1.0]
[1746456061993,6.8977,144.99,144.96,6.8984]
[1746456062292,6.8978,144.98,144.96,6.8984]
[1746456063597,8.9881,145.0,144.98,6.8977]
[1746456063791,8.9881,145.0,144.93,25.54]
[1746456063993,6.8971,145.0,144.93,37.15990527]
[1746456064189,36.5181,145.01,144.98,6.8976]
[1746456064495,29.6215,145.01,144.93,37.15990527]
[1746456064696,6.8974,144.99,144.97,6.898]
[1746456065196,29.6215,145.01,144.97,6.898]
[1746456065397,6.8972,145.0,144.97,6.898]
[1746456065597,29.6215,145.01,144.97,6.898]
[1746456065803,6.8971,145.0,144.97,6.898]
[1746456066194,29.6215,145.01,144.98,6.8978]
[1746456066796,29.6215,145.01,144.97,6.898]
[1746456066996,6.8973,145.0,144.97,6.898]
[1746456067600,6.8974,144.99,144.97,6.898]
[1746456068201,6.8971,145.0,144.97,6.898]
[1746456069599,6.8971,145.0,144.98,6.8977]
[1746456069800,36.5181,145.01,144.98,6.8977]
[1746456070101,29.6215,145.01,144.93,37.15990527]
[1746456070299,29.6215,145.01,144.97,6.8981]
[1746456070499,29.6215,145.01,144.93,37.15990527]
[1746456070799,29.6215,145.01,144.95,6.899]
[1746456071001,6.8981,144.98,144.93,37.15990527]
[1746456071200,29.6215,145.01,144.93,37.15990527]
[1746456071497,6.8976,144.99,144.96,6.8985]
[1746456072598,6.8976,144.99,144.97,6.8982]
[1746456073200,6.8978,144.98,144.93,37.15990527]
[1746456073701,6.8978,144.98,144.95,6.8989]
[1746456073896,6.8983,144.97,144.93,25.54]
[1746456074299,6.8983,144.97,144.94,6.8993]
[1746456074601,6.8983,144.97,144.93,25.54]
[1746456074998,6.8983,144.97,144.95,6.8992]
[1746456075206,6.898,144.98,144.95,6.8992]
[1746456075501,2.1067,145.0,144.95,6.8992]
[1746456076106,6.8982,144.98,144.95,6.8992]
[1746456076313,2.1067,145.0,144.93,32.4398]
[1746456076605,2.1067,145.0,144.93,6.8998]
[1746456076795,6.8991,144.96,144.93,6.8998]
[1746456076996,6.8991,144.96,144.94,6.8997]
[1746456077405,6.8985,144.97,144.94,6.8997]
[1746456077902,2.1067,145.0,144.94,6.8997]
[1746456078401,2.1067,145.0,144.91,1.0]
[1746456078796,6.8981,144.98,144.95,6.8988]
[1746456079001,2.1067,145.0,144.95,6.8988]
[1746456079300,6.8985,144.97,144.95,6.8988]
[1746456079603,2.1067,145.0,144.91,1.0]
[1746456080403,6.8985,144.97,144.91,1.0]
[1746456080997,6.8985,144.97,144.95,6.8992]
[1746456082701,6.898,144.98,144.95,6.8992]
[1746456083002,6.898,144.98,144.91,1.0]
[1746456083305,6.8987,144.97,144.94,6.8994]
[1746456084101,2.1067,145.0,144.94,6.8994]
[1746456086507,6.899,144.96,144.94,6.8994]
[1746456087108,6.8985,144.97,144.94,6.8994]
[1746456087304,2.1067,145.0,144.93,6.8999]
[1746456087807,2.1067,145.0,144.94,6.8996]
[1746456088006,9.5445349,145.0,144.94,7.4378349]
[1746456088410,6.898,144.98,144.94,7.4378349]
[1746456088914,6.898,144.98,144.95,6.8988]
[1746456089304,2.1067,145.0,144.96,7.4378349]
[1746456089809,6.8974,144.99,144.97,6.898]
[1746456090014,6.8974,144.99,144.94,25.52]
[1746456090409,6.8974,144.99,144.97,6.8981]
[1746456090608,9.0036,145.0,144.94,25.52]
[1746456090804,25.52,145.04,144.94,25.52]
[1746456091003,27.58,145.04,144.94,25.52]
[1746456091205,27.58,145.04,144.98,6.8975]
[1746456092208,6.8968,145.01,144.98,6.8975]
[1746456092601,27.58,145.04,144.94,25.52]
[1746456092808,6.8965,145.01,144.94,25.52]
[1746456093213,6.8965,145.01,144.99,6.897]
[1746456094007,8.9551,145.04,145.01,6.896]
[1746456094407,2.06,145.04,145.01,6.896]
[1746456094608,2.06,145.04,144.98,25.52]
[1746456094609,6.8958,145.03,145.0,6.8966]
[1746456094810,2.06,145.04,145.0,6.8966]
[1746456095205,2.06,145.04,144.98,25.52]
[1746456095605,27.58,145.04,144.98,25.52]
[1746456095812,27.58,145.04,144.97,6.8981]